[Event "Live Chess"]
[Site "Chess.com"]
[Date "2023.05.20"]
[Round "-"]
[White "TheSmoulderingMaster"]
[Black "Stanbad1"]
[Result "0-1"]
[WhiteElo "1745"]
[BlackElo "2422"]
[TimeControl "300"]
[EndTime "13:23:15 PDT"]
[Termination "Stanbad1 won by resignation"]

1. e4 {[%clk 0:04:58.9]} 1... e6 {[%clk 0:04:58.3]} 2. d4 {[%clk 0:04:57.1]}
2... d5 {[%clk 0:04:57.5]} 3. Nc3 {[%clk 0:04:55.2]} 3... Nf6 {[%clk 0:04:56.7]}
4. Bg5 {[%clk 0:04:52.8]} 4... Bb4 {[%clk 0:04:54.6]} 5. e5 {[%clk 0:04:48.9]}
5... h6 {[%clk 0:04:53.2]} 6. Bh4 {[%clk 0:04:46.6]} 6... g5 {[%clk 0:04:51.5]}
7. Bg3 {[%clk 0:04:45.5]} 7... Ne4 {[%clk 0:04:49.3]} 8. Ne2 {[%clk 0:04:43.4]}
8... c5 {[%clk 0:04:45.3]} 9. Qd3 {[%clk 0:04:40.2]} 9... Nc6 {[%clk 0:04:40.5]}
10. O-O-O {[%clk 0:04:35.6]} 10... c4 {[%clk 0:04:29.4]} 11. Qe3 {[%clk
0:04:32.5]} 11... Nxg3 {[%clk 0:04:26.2]} 12. hxg3 {[%clk 0:04:27.8]} 12... Qa5
{[%clk 0:04:22.1]} 13. Kb1 {[%clk 0:04:19.4]} 13... b5 {[%clk 0:04:19.7]} 14.
Nc1 {[%clk 0:04:08.7]} 14... Qb6 {[%clk 0:04:11]} 15. f4 {[%clk 0:04:04.7]}
15... g4 {[%clk 0:04:08.6]} 16. Be2 {[%clk 0:03:56.1]} 16... a5 {[%clk
0:04:03.3]} 17. Bxg4 {[%clk 0:03:52]} 17... Bxc3 {[%clk 0:04:00.6]} 18. Qxc3
{[%clk 0:03:49.9]} 18... b4 {[%clk 0:03:59.1]} 19. Qe3 {[%clk 0:03:46.1]} 19...
a4 {[%clk 0:03:57.8]} 20. f5 {[%clk 0:03:43.1]} 20... exf5 {[%clk 0:03:55.4]}
21. Bf3 {[%clk 0:03:39.9]} 21... Be6 {[%clk 0:03:54.1]} 22. Rxh6 {[%clk
0:03:36.6]} 22... Rxh6 {[%clk 0:03:51.3]} 23. Qxh6 {[%clk 0:03:35.6]} 23...
O-O-O {[%clk 0:03:50.1]} 24. Bh5 {[%clk 0:03:21.5]} 24... b3 {[%clk 0:03:46.5]}
25. a3 {[%clk 0:03:18.7]} 25... bxc2+ {[%clk 0:03:44.3]} 26. Kxc2 {[%clk
0:03:17.8]} 26... Nxd4+ {[%clk 0:03:44.1]} 27. Kb1 {[%clk 0:03:13.4]} 27... c3
{[%clk 0:03:43.2]} 28. Nd3 {[%clk 0:03:03.2]} 28... c2+ {[%clk 0:03:41.7]} 29.
Kc1 {[%clk 0:03:00.4]} 29... cxd1=Q+ {[%clk 0:03:41.1]} 30. Kxd1 {[%clk
0:02:59.9]} 30... Qb3+ {[%clk 0:03:38.8]} 31. Kd2 {[%clk 0:02:58.3]} 31... Qc2+
{[%clk 0:03:37.5]} 32. Ke3 {[%clk 0:02:57.8]} 32... f4+ {[%clk 0:03:36.3]} 33.
gxf4 {[%clk 0:02:54.7]} 33... Nf5+ {[%clk 0:03:34.9]} 0-1

[Event "Live Chess"]
[Site "Chess.com"]
[Date "2023.05.20"]
[Round "-"]
[White "JoshMcK"]
[Black "matt1979"]
[Result "0-1"]
[WhiteElo "1582"]
[BlackElo "1473"]
[TimeControl "300"]
[EndTime "13:23:16 PDT"]
[Termination "matt1979 won by resignation"]

1. e4 {[%clk 0:04:57.2]} 1... d6 {[%clk 0:04:56.2]} 2. d4 {[%clk 0:04:55.4]}
2... Nf6 {[%clk 0:04:54.7]} 3. Nc3 {[%clk 0:04:51.2]} 3... e5 {[%clk 0:04:53.2]}
4. dxe5 {[%clk 0:04:48.2]} 4... dxe5 {[%clk 0:04:52.2]} 5. Qxd8+ {[%clk
0:04:47.4]} 5... Kxd8 {[%clk 0:04:51.4]} 6. Nf3 {[%clk 0:04:43.4]} 6... Bd6
{[%clk 0:04:40.8]} 7. Nb5 {[%clk 0:04:41.8]} 7... Nbd7 {[%clk 0:04:33.4]} 8.
Nxd6 {[%clk 0:04:39.5]} 8... cxd6 {[%clk 0:04:32.4]} 9. Bg5 {[%clk 0:04:38.7]}
9... Ke7 {[%clk 0:04:30.8]} 10. O-O-O {[%clk 0:04:37.4]} 10... h6 {[%clk
0:04:20.9]} 11. Bxf6+ {[%clk 0:04:35.3]} 11... Nxf6 {[%clk 0:04:17.4]} 12. Bd3
{[%clk 0:04:31.6]} 12... Be6 {[%clk 0:04:13.2]} 13. h3 {[%clk 0:04:25.1]} 13...
a5 {[%clk 0:04:06]} 14. b3 {[%clk 0:04:18.7]} 14... a4 {[%clk 0:03:59.7]} 15.
Kb2 {[%clk 0:04:15.8]} 15... axb3 {[%clk 0:03:57.8]} 16. cxb3 {[%clk 0:04:12.8]}
16... Ra7 {[%clk 0:03:53.5]} 17. Nd2 {[%clk 0:04:11.9]} 17... Rha8 {[%clk
0:03:51.4]} 18. a4 {[%clk 0:04:09.8]} 18... Bd7 {[%clk 0:03:31.2]} 19. Nc4
{[%clk 0:03:59.4]} 19... Bc6 {[%clk 0:03:10]} 20. Nb6 {[%clk 0:03:53.7]} 20...
Rd8 {[%clk 0:03:07.9]} 21. f3 {[%clk 0:03:49.4]} 21... Nd7 {[%clk 0:02:57.5]}
22. Nxd7 {[%clk 0:03:45.5]} 22... Rxd7 {[%clk 0:02:54]} 23. Bc4 {[%clk
0:03:44.5]} 23... f6 {[%clk 0:02:52.1]} 24. Rd2 {[%clk 0:03:43]} 24... Ra8
{[%clk 0:02:46.1]} 25. Rhd1 {[%clk 0:03:42.1]} 25... Rb8 {[%clk 0:02:36.1]} 26.
g4 {[%clk 0:03:36.5]} 26... b5 {[%clk 0:02:28.2]} 27. axb5 {[%clk 0:03:23.2]}
27... Bxb5 {[%clk 0:02:26.1]} 28. Bxb5 {[%clk 0:03:23]} 28... Rxb5 {[%clk
0:02:24.9]} 29. Rd5 {[%clk 0:03:21.7]} 29... Rb6 {[%clk 0:02:22.4]} 30. R1d3
{[%clk 0:03:10.6]} 30... g5 {[%clk 0:02:19.4]} 31. Ka3 {[%clk 0:03:07.1]} 31...
Ra7+ {[%clk 0:02:16.8]} 32. Kb2 {[%clk 0:03:06.2]} 32... Rba6 {[%clk 0:02:11.4]}
33. Kc3 {[%clk 0:02:58.3]} 33... Rc7+ {[%clk 0:02:08.6]} 34. Kb2 {[%clk
0:02:53.3]} 34... Rca7 {[%clk 0:02:06.6]} 35. Kc3 {[%clk 0:02:51]} 35... Rc7+
{[%clk 0:02:05.3]} 36. Kb4 {[%clk 0:02:46.5]} 36... Rb7+ {[%clk 0:01:54.8]} 37.
Rb5 {[%clk 0:02:45.1]} 37... Rc7 {[%clk 0:01:43.6]} 38. Rb8 {[%clk 0:02:38]}
38... Kf7 {[%clk 0:01:27.6]} 39. Rd8 {[%clk 0:02:34.6]} 39... Rcc6 {[%clk
0:01:24.4]} 40. Rd7+ {[%clk 0:02:17.8]} 40... Kg6 {[%clk 0:01:19.1]} 41. Rc3
{[%clk 0:02:06.9]} 41... Rab6+ {[%clk 0:01:17.4]} 42. Ka3 {[%clk 0:02:05.4]}
42... Rxc3 {[%clk 0:01:16.1]} 43. Kb2 {[%clk 0:02:05.2]} 43... Rbxb3+ {[%clk
0:01:14.8]} 0-1

[Event "Live Chess"]
[Site "Chess.com"]
[Date "2023.05.20"]
[Round "-"]
[White "JohanKjeldahl"]
[Black "Vitalii18a"]
[Result "1-0"]
[WhiteElo "1844"]
[BlackElo "1108"]
[TimeControl "300"]
[EndTime "13:23:26 PDT"]
[Termination "JohanKjeldahl won by resignation"]

1. e4 {[%clk 0:04:57.9]} 1... e5 {[%clk 0:04:57]} 2. Nf3 {[%clk 0:04:56.5]} 2...
d6 {[%clk 0:04:55.1]} 3. d4 {[%clk 0:04:55.3]} 3... Be7 {[%clk 0:04:54]} 4. Bc4
{[%clk 0:04:53.8]} 4... exd4 {[%clk 0:04:52.5]} 5. Nxd4 {[%clk 0:04:50.7]} 5...
Nf6 {[%clk 0:04:49]} 6. Nc3 {[%clk 0:04:47.8]} 6... O-O {[%clk 0:04:43.7]} 7.
O-O {[%clk 0:04:46.4]} 7... Be6 {[%clk 0:04:40.8]} 8. Bxe6 {[%clk 0:04:43.7]}
8... fxe6 {[%clk 0:04:39.7]} 9. Nxe6 {[%clk 0:04:42.8]} 9... Qe8 {[%clk
0:04:38.3]} 10. Nxf8 {[%clk 0:04:42]} 10... Qxf8 {[%clk 0:04:38.2]} 11. Qe2
{[%clk 0:04:38.3]} 11... Nc6 {[%clk 0:04:36.7]} 12. Be3 {[%clk 0:04:34]} 12...
Ne5 {[%clk 0:04:35.2]} 13. Rad1 {[%clk 0:04:25.9]} 13... c6 {[%clk 0:04:33.6]}
14. h3 {[%clk 0:04:21.9]} 14... d5 {[%clk 0:04:25.7]} 15. exd5 {[%clk
0:04:18.1]} 15... cxd5 {[%clk 0:04:24.2]} 16. Nxd5 {[%clk 0:04:16.5]} 16... Nxd5
{[%clk 0:04:22.8]} 17. Rxd5 {[%clk 0:04:15.4]} 17... Ng6 {[%clk 0:04:19.5]} 18.
Rfd1 {[%clk 0:04:10.6]} 18... b6 {[%clk 0:04:14.6]} 19. Qc4 {[%clk 0:04:06.8]}
19... Bf6 {[%clk 0:04:13]} 20. Rd8+ {[%clk 0:04:02.1]} 20... Kh8 {[%clk
0:04:00.4]} 21. Rxf8+ {[%clk 0:03:59.9]} 21... Rxf8 {[%clk 0:03:59.1]} 22. Qc7
{[%clk 0:03:47.6]} 22... Bxb2 {[%clk 0:03:55.4]} 23. Qxa7 {[%clk 0:03:44.5]}
23... h6 {[%clk 0:03:30.1]} 24. Qxb6 {[%clk 0:03:40.6]} 24... Bf6 {[%clk
0:03:18.2]} 25. a4 {[%clk 0:03:32.3]} 25... Ne7 {[%clk 0:02:49.5]} 26. Bc5
{[%clk 0:03:28.4]} 26... Rf7 {[%clk 0:02:39.8]} 27. Qe6 {[%clk 0:03:19]} 27...
Kg8 {[%clk 0:02:32.6]} 28. Rd8+ {[%clk 0:03:15.4]} 1-0

[Event "Live Chess"]
[Site "Chess.com"]
[Date "2023.05.20"]
[Round "-"]
[White "BritishIsles"]
[Black "domrobson"]
[Result "0-1"]
[WhiteElo "2417"]
[BlackElo "1753"]
[TimeControl "300"]
[EndTime "13:23:33 PDT"]
[Termination "domrobson won by checkmate"]

1. d4 {[%clk 0:04:57.7]} 1... Nf6 {[%clk 0:04:58.6]} 2. Bg5 {[%clk 0:04:56.1]}
2... Ne4 {[%clk 0:04:55.5]} 3. Bh4 {[%clk 0:04:55]} 3... d5 {[%clk 0:04:53.3]}
4. f3 {[%clk 0:04:49.2]} 4... g5 {[%clk 0:04:34.8]} 5. fxe4 {[%clk 0:04:47.1]}
5... gxh4 {[%clk 0:04:33.2]} 6. exd5 {[%clk 0:04:44.4]} 6... Qxd5 {[%clk
0:04:30.3]} 7. Nc3 {[%clk 0:04:43.4]} 7... Qh5 {[%clk 0:04:15.6]} 8. e4 {[%clk
0:04:36.5]} 8... Bg4 {[%clk 0:04:09.1]} 9. Be2 {[%clk 0:04:29.8]} 9... Bxe2
{[%clk 0:04:06.3]} 10. Ngxe2 {[%clk 0:04:28.4]} 10... Bh6 {[%clk 0:04:01.7]} 11.
Nd5 {[%clk 0:04:23.4]} 11... Na6 {[%clk 0:03:54.3]} 12. Qd3 {[%clk 0:03:11.2]}
12... c6 {[%clk 0:03:49]} 13. Ndf4 {[%clk 0:03:10.1]} 13... Qg4 {[%clk
0:03:38.7]} 14. O-O {[%clk 0:03:08.6]} 14... Rg8 {[%clk 0:03:29.6]} 15. Qf3
{[%clk 0:02:55.1]} 15... O-O-O {[%clk 0:03:26.3]} 16. c3 {[%clk 0:02:52.2]}
16... f6 {[%clk 0:03:09.5]} 17. h3 {[%clk 0:02:37.1]} 17... Qd7 {[%clk 0:02:55]}
18. Nd3 {[%clk 0:02:17.9]} 18... b6 {[%clk 0:02:36]} 19. Qf5 {[%clk 0:02:12.9]}
19... Be3+ {[%clk 0:02:14.6]} 20. Kh1 {[%clk 0:02:11.4]} 20... Nc7 {[%clk
0:02:01.1]} 21. Qxd7+ {[%clk 0:02:07.5]} 21... Rxd7 {[%clk 0:01:53.4]} 22. Rf3
{[%clk 0:02:06.3]} 22... Bg5 {[%clk 0:01:51.5]} 23. e5 {[%clk 0:02:00.8]} 23...
h6 {[%clk 0:01:47.1]} 24. Raf1 {[%clk 0:01:59]} 24... Nd5 {[%clk 0:01:42.1]} 25.
exf6 {[%clk 0:01:55]} 25... exf6 {[%clk 0:01:37.7]} 26. Nef4 {[%clk 0:01:52.6]}
26... Nxf4 {[%clk 0:01:32.2]} 27. Nxf4 {[%clk 0:01:52.5]} 27... Re7 {[%clk
0:01:28.4]} 28. Nh5 {[%clk 0:01:49.8]} 28... Re2 {[%clk 0:01:24.8]} 29. R3f2
{[%clk 0:01:48.8]} 29... Rge8 {[%clk 0:01:14.7]} 30. Ng7 {[%clk 0:01:47.2]}
30... R8e4 {[%clk 0:00:57.1]} 31. Nf5 {[%clk 0:01:45.7]} 31... Re1 {[%clk
0:00:52.5]} 32. Nd6+ {[%clk 0:01:44.1]} 32... Kd7 {[%clk 0:00:49.7]} 33. Nxe4
{[%clk 0:01:43.5]} 33... Rxe4 {[%clk 0:00:49.1]} 34. Rxf6 {[%clk 0:01:38.8]}
34... Bxf6 {[%clk 0:00:47.1]} 35. Rxf6 {[%clk 0:01:38.7]} 35... Re2 {[%clk
0:00:46.4]} 36. Rxh6 {[%clk 0:01:35.2]} 36... Rxb2 {[%clk 0:00:45.9]} 37. Rh7+
{[%clk 0:01:34.4]} 37... Kd6 {[%clk 0:00:44.5]} 38. Rxa7 {[%clk 0:01:34.3]}
38... Kd5 {[%clk 0:00:43.5]} 39. Rh7 {[%clk 0:01:27.5]} 39... Rxa2 {[%clk
0:00:41.8]} 40. Rxh4 {[%clk 0:01:26.7]} 40... Kc4 {[%clk 0:00:41.3]} 41. Rh6
{[%clk 0:01:24.1]} 41... c5 {[%clk 0:00:36.7]} 42. dxc5 {[%clk 0:01:24]} 42...
bxc5 {[%clk 0:00:35.5]} 43. Rc6 {[%clk 0:01:22.6]} 43... Ra5 {[%clk 0:00:33.7]}
44. h4 {[%clk 0:01:20.3]} 44... Kxc3 {[%clk 0:00:32.9]} 45. g4 {[%clk
0:01:19.4]} 45... Kd4 {[%clk 0:00:32.6]} 46. Kg2 {[%clk 0:01:18.2]} 46... Ke4
{[%clk 0:00:31.8]} 47. Kg3 {[%clk 0:01:16.8]} 47... Ra3+ {[%clk 0:00:29.8]} 48.
Kg2 {[%clk 0:01:15.7]} 48... Kf4 {[%clk 0:00:23.5]} 49. g5 {[%clk 0:01:12.9]}
49... Kg4 {[%clk 0:00:18.1]} 50. Rh6 {[%clk 0:00:58.8]} 50... Ra2+ {[%clk
0:00:13.2]} 51. Kf1 {[%clk 0:00:57.9]} 51... c4 {[%clk 0:00:12.8]} 52. g6 {[%clk
0:00:56.9]} 52... Kf3 {[%clk 0:00:11.3]} 53. g7 {[%clk 0:00:56.3]} 53... Ra1#
{[%clk 0:00:10.5]} 0-1

[Event "Live Chess"]
[Site "Chess.com"]
[Date "2023.05.20"]
[Round "-"]
[White "OleksiyJr1"]
[Black "Ferrarifan27"]
[Result "0-1"]
[WhiteElo "964"]
[BlackElo "2050"]
[TimeControl "300"]
[EndTime "13:23:37 PDT"]
[Termination "Ferrarifan27 won by resignation"]

1. e4 {[%clk 0:04:58]} 1... e5 {[%clk 0:04:58.9]} 2. Nf3 {[%clk 0:04:57.2]} 2...
Nc6 {[%clk 0:04:58]} 3. Bc4 {[%clk 0:04:56.4]} 3... Nd4 {[%clk 0:04:56.1]} 4.
Nxe5 {[%clk 0:04:53.8]} 4... Qg5 {[%clk 0:04:54.3]} 5. O-O {[%clk 0:04:47]} 5...
Qxe5 {[%clk 0:04:52]} 6. c3 {[%clk 0:04:46.4]} 6... Nc6 {[%clk 0:04:48.5]} 7. d4
{[%clk 0:04:46.3]} 7... Qf6 {[%clk 0:04:38.5]} 8. e5 {[%clk 0:04:45]} 8... Qg6
{[%clk 0:04:37.5]} 9. Qf3 {[%clk 0:04:42.7]} 9... Nh6 {[%clk 0:04:31.9]} 10.
Bxh6 {[%clk 0:04:39.7]} 10... gxh6 {[%clk 0:04:31]} 11. Bxf7+ {[%clk 0:04:38.3]}
11... Qxf7 {[%clk 0:04:29.6]} 12. Qxf7+ {[%clk 0:04:37.1]} 12... Kxf7 {[%clk
0:04:29]} 13. Re1 {[%clk 0:04:35.6]} 13... Rg8 {[%clk 0:04:27.2]} 14. e6+ {[%clk
0:04:35.5]} 14... dxe6 {[%clk 0:04:26.3]} 15. d5 {[%clk 0:04:35.4]} 15... exd5
{[%clk 0:04:24.2]} 16. c4 {[%clk 0:04:35.3]} 0-1

[Event "Live Chess"]
[Site "Chess.com"]
[Date "2023.05.20"]
[Round "-"]
[White "LozzaLoaf"]
[Black "Jo1ts"]
[Result "1/2-1/2"]
[WhiteElo "248"]
[BlackElo "722"]
[TimeControl "300"]
[EndTime "13:23:53 PDT"]
[Termination "Game drawn by stalemate"]

1. d4 {[%clk 0:04:57]} 1... d5 {[%clk 0:04:56.2]} 2. Nf3 {[%clk 0:04:55.7]} 2...
Nf6 {[%clk 0:04:49.8]} 3. b3 {[%clk 0:04:54.2]} 3... Bg4 {[%clk 0:04:42.1]} 4.
Nh4 {[%clk 0:04:49.6]} 4... Nc6 {[%clk 0:04:33.9]} 5. f3 {[%clk 0:04:48.5]} 5...
Bh5 {[%clk 0:04:28.2]} 6. g4 {[%clk 0:04:47]} 6... Bg6 {[%clk 0:04:27.6]} 7. c4
{[%clk 0:04:41.9]} 7... dxc4 {[%clk 0:04:20.1]} 8. d5 {[%clk 0:04:40.2]} 8...
Nxd5 {[%clk 0:04:16.5]} 9. bxc4 {[%clk 0:04:38.3]} 9... Nf4 {[%clk 0:04:07.2]}
10. Bxf4 {[%clk 0:04:32.7]} 10... Qxd1+ {[%clk 0:03:58.3]} 11. Kxd1 {[%clk
0:04:31.2]} 11... O-O-O+ {[%clk 0:03:56.4]} 12. Kc1 {[%clk 0:04:29.2]} 12... e5
{[%clk 0:03:48.4]} 13. g5 {[%clk 0:04:28]} 13... exf4 {[%clk 0:03:45.6]} 14.
Bh3+ {[%clk 0:04:26.9]} 14... Kb8 {[%clk 0:03:39]} 15. Rd1 {[%clk 0:04:22.7]}
15... Rxd1+ {[%clk 0:03:34.4]} 16. Kxd1 {[%clk 0:04:21.5]} 16... Bc5 {[%clk
0:03:30.4]} 17. Nc3 {[%clk 0:04:20.6]} 17... Bd4 {[%clk 0:03:28.4]} 18. Kd2
{[%clk 0:04:16.9]} 18... Rd8 {[%clk 0:03:23.3]} 19. Nb5 {[%clk 0:04:11.1]} 19...
Bxa1+ {[%clk 0:03:20.4]} 20. Ke1 {[%clk 0:04:08]} 20... a6 {[%clk 0:03:13.1]}
21. Na3 {[%clk 0:04:02.2]} 21... Bb2 {[%clk 0:03:08.4]} 22. Nc2 {[%clk
0:03:59.1]} 22... Bc3+ {[%clk 0:03:05.1]} 23. Kf2 {[%clk 0:03:56.3]} 23... Nd4
{[%clk 0:03:02.7]} 24. e3 {[%clk 0:03:55.1]} 24... Nxc2 {[%clk 0:03:01.2]} 25.
exf4 {[%clk 0:03:53.7]} 25... Re8 {[%clk 0:02:51.8]} 26. Nxg6 {[%clk 0:03:51.9]}
26... hxg6 {[%clk 0:02:50.1]} 27. f5 {[%clk 0:03:47.5]} 27... gxf5 {[%clk
0:02:48.2]} 28. Bxf5 {[%clk 0:03:46.4]} 28... Bd4+ {[%clk 0:02:45.5]} 29. Kg3
{[%clk 0:03:43.9]} 29... g6 {[%clk 0:02:42]} 30. Be4 {[%clk 0:03:39.1]} 30...
Ne3 {[%clk 0:02:28.4]} 31. f4 {[%clk 0:03:30.5]} 31... Rxe4 {[%clk 0:02:24.6]}
32. f5 {[%clk 0:03:27.4]} 32... Nxf5+ {[%clk 0:02:17.2]} 33. Kf3 {[%clk
0:03:23]} 33... Re3+ {[%clk 0:02:08.9]} 34. Kf4 {[%clk 0:03:21.1]} 34... Re6
{[%clk 0:01:52]} 35. h4 {[%clk 0:03:15.7]} 35... Nxh4 {[%clk 0:01:49.8]} 36. Kg4
{[%clk 0:03:14]} 36... Nf5 {[%clk 0:01:46.8]} 37. Kf4 {[%clk 0:03:09.8]} 37...
Re2 {[%clk 0:01:45.7]} 38. Kf3 {[%clk 0:03:05.7]} 38... Rxa2 {[%clk 0:01:42]}
39. Ke4 {[%clk 0:03:04.5]} 39... Rc2 {[%clk 0:01:39.8]} 40. Kd5 {[%clk
0:03:00.9]} 40... Rg2 {[%clk 0:01:38.2]} 41. c5 {[%clk 0:02:56.8]} 41... Rxg5
{[%clk 0:01:32.6]} 42. c6 {[%clk 0:02:55.4]} 42... bxc6+ {[%clk 0:01:31.9]} 43.
Kxc6 {[%clk 0:02:53.9]} 43... Ba7 {[%clk 0:01:28.3]} 44. Kd7 {[%clk 0:02:49.7]}
44... Ne3 {[%clk 0:01:27.6]} 45. Ke7 {[%clk 0:02:47.4]} 45... Rf5 {[%clk
0:01:26.1]} 46. Kf8 {[%clk 0:02:46.1]} 46... g5 {[%clk 0:01:25.6]} 47. Kg7
{[%clk 0:02:44.7]} 47... g4 {[%clk 0:01:25.5]} 48. Kh6 {[%clk 0:02:43.1]} 48...
g3 {[%clk 0:01:24.4]} 49. Kg7 {[%clk 0:02:41.9]} 49... g2 {[%clk 0:01:23.5]} 50.
Kf8 {[%clk 0:02:38.8]} 50... g1=Q {[%clk 0:01:22.1]} 51. Ke7 {[%clk 0:02:37.7]}
51... Nd5+ {[%clk 0:01:18.4]} 52. Kd7 {[%clk 0:02:35]} 52... Qe3 {[%clk
0:01:10.5]} 53. Kc6 {[%clk 0:02:33.1]} 53... Nb6 {[%clk 0:01:07.7]} 1/2-1/2

[Event "Live Chess"]
[Site "Chess.com"]
[Date "2023.05.20"]
[Round "-"]
[White "OceanFloater"]
[Black "onemoretime1975"]
[Result "0-1"]
[WhiteElo "997"]
[BlackElo "1862"]
[TimeControl "300"]
[EndTime "13:23:53 PDT"]
[Termination "onemoretime1975 won by resignation"]

1. e4 {[%clk 0:04:56.9]} 1... e6 {[%clk 0:04:58.4]} 2. Nf3 {[%clk 0:04:56.4]}
2... d5 {[%clk 0:04:56.3]} 3. exd5 {[%clk 0:04:52.1]} 3... exd5 {[%clk 0:04:55]}
4. d4 {[%clk 0:04:51.4]} 4... Nf6 {[%clk 0:04:53.2]} 5. Nc3 {[%clk 0:04:50.9]}
5... c6 {[%clk 0:04:51.1]} 6. Bg5 {[%clk 0:04:49.8]} 6... Be7 {[%clk 0:04:49.3]}
7. g3 {[%clk 0:04:43.9]} 7... O-O {[%clk 0:04:47.3]} 8. Bh3 {[%clk 0:04:43.2]}
8... Bxh3 {[%clk 0:04:44.2]} 9. Ne5 {[%clk 0:04:38.1]} 9... Nbd7 {[%clk
0:04:39.6]} 10. Nxd7 {[%clk 0:04:36.4]} 10... Qxd7 {[%clk 0:04:37.6]} 11. Bxf6
{[%clk 0:04:36.1]} 11... Bxf6 {[%clk 0:04:35.7]} 12. Qh5 {[%clk 0:04:33.7]}
12... Rfe8+ {[%clk 0:04:32]} 13. Ne2 {[%clk 0:04:31.6]} 13... Bg4 {[%clk
0:04:28.8]} 0-1

[Event "Live Chess"]
[Site "Chess.com"]
[Date "2023.05.20"]
[Round "-"]
[White "GMHarry-youtube"]
[Black "EdvancedChess"]
[Result "0-1"]
[WhiteElo "2083"]
[BlackElo "1883"]
[TimeControl "300"]
[EndTime "13:23:55 PDT"]
[Termination "EdvancedChess won by checkmate"]

1. e4 {[%clk 0:04:59.1]} 1... e5 {[%clk 0:04:59.2]} 2. Nf3 {[%clk 0:04:58.2]}
2... Nc6 {[%clk 0:04:58.8]} 3. Bc4 {[%clk 0:04:57.9]} 3... Nf6 {[%clk
0:04:58.4]} 4. d3 {[%clk 0:04:57.2]} 4... Bc5 {[%clk 0:04:56.7]} 5. c3 {[%clk
0:04:56.6]} 5... O-O {[%clk 0:04:56.2]} 6. O-O {[%clk 0:04:55.9]} 6... d6 {[%clk
0:04:55]} 7. a4 {[%clk 0:04:54.2]} 7... a6 {[%clk 0:04:53]} 8. h3 {[%clk
0:04:49.7]} 8... h6 {[%clk 0:04:51.5]} 9. Bd2 {[%clk 0:04:48]} 9... Qe7 {[%clk
0:04:48.4]} 10. Na3 {[%clk 0:04:47.1]} 10... Be6 {[%clk 0:04:46]} 11. b4 {[%clk
0:04:45.5]} 11... Ba7 {[%clk 0:04:43.4]} 12. Qc1 {[%clk 0:04:43.6]} 12... d5
{[%clk 0:04:38.4]} 13. exd5 {[%clk 0:04:41.6]} 13... Nxd5 {[%clk 0:04:37.3]} 14.
Qc2 {[%clk 0:04:27]} 14... Rad8 {[%clk 0:04:24.9]} 15. Rfe1 {[%clk 0:04:24.7]}
15... f6 {[%clk 0:04:23.7]} 16. Qb3 {[%clk 0:04:21.7]} 16... Rfe8 {[%clk
0:04:11.9]} 17. Nc2 {[%clk 0:04:19.4]} 17... Nb6 {[%clk 0:03:38.1]} 18. a5
{[%clk 0:04:13.9]} 18... Nxc4 {[%clk 0:03:36.1]} 19. dxc4 {[%clk 0:04:13.2]}
19... e4 {[%clk 0:03:31.3]} 20. Rxe4 {[%clk 0:04:06.5]} 20... Qd6 {[%clk
0:03:27.1]} 21. Bf4 {[%clk 0:04:03.6]} 21... Qd3 {[%clk 0:03:24]} 22. Rae1
{[%clk 0:03:59.9]} 22... Bf7 {[%clk 0:03:08.4]} 23. Rxe8+ {[%clk 0:03:54.8]}
23... Rxe8 {[%clk 0:03:07.4]} 24. Rxe8+ {[%clk 0:03:46.5]} 24... Bxe8 {[%clk
0:03:07.3]} 25. Ncd4 {[%clk 0:03:45.2]} 25... Nxd4 {[%clk 0:03:02]} 26. Nxd4
{[%clk 0:03:27.8]} 26... Bxd4 {[%clk 0:02:55.5]} 27. c5+ {[%clk 0:03:15.8]}
27... Bf7 {[%clk 0:02:54.5]} 28. Qa4 {[%clk 0:03:11.9]} 28... Qxc3 {[%clk
0:02:38]} 29. Bxc7 {[%clk 0:03:09.6]} 29... Qc1+ {[%clk 0:02:35.8]} 30. Kh2
{[%clk 0:03:08.4]} 30... Bxf2 {[%clk 0:02:35.1]} 31. h4 {[%clk 0:03:03.5]} 31...
Bg1+ {[%clk 0:02:29.3]} 32. Kh3 {[%clk 0:02:57.1]} 32... Qe3+ {[%clk 0:02:28.5]}
33. Kg4 {[%clk 0:02:56]} 33... h5+ {[%clk 0:02:27]} 34. Kf5 {[%clk 0:02:55.1]}
34... Be6+ {[%clk 0:02:22.8]} 35. Kg6 {[%clk 0:02:50]} 35... Qe4+ {[%clk
0:02:22.4]} 36. Kxh5 {[%clk 0:02:48.4]} 36... g6+ {[%clk 0:02:21.5]} 37. Kh6
{[%clk 0:02:46.1]} 37... Be3+ {[%clk 0:02:21.4]} 38. Bf4 {[%clk 0:02:43.1]}
38... Bxf4# {[%clk 0:02:21.3]} 0-1

[Event "Live Chess"]
[Site "Chess.com"]
[Date "2023.05.20"]
[Round "-"]
[White "SiDebanks"]
[Black "EdenHazard8"]
[Result "0-1"]
[WhiteElo "1372"]
[BlackElo "2091"]
[TimeControl "300"]
[EndTime "13:24:04 PDT"]
[Termination "EdenHazard8 won by resignation"]

1. d4 {[%clk 0:04:59.6]} 1... e5 {[%clk 0:04:59.1]} 2. dxe5 {[%clk 0:04:58.6]}
2... Nc6 {[%clk 0:04:58.6]} 3. Nf3 {[%clk 0:04:58]} 3... Qe7 {[%clk 0:04:58]} 4.
e4 {[%clk 0:04:56.4]} 4... Nxe5 {[%clk 0:04:56.9]} 5. Be2 {[%clk 0:04:55.9]}
5... Nxf3+ {[%clk 0:04:55.9]} 6. Bxf3 {[%clk 0:04:55.8]} 6... Nf6 {[%clk
0:04:55.4]} 7. O-O {[%clk 0:04:54.5]} 7... d6 {[%clk 0:04:54.9]} 8. Nc3 {[%clk
0:04:53.1]} 8... Be6 {[%clk 0:04:54.4]} 9. Re1 {[%clk 0:04:52.6]} 9... O-O-O
{[%clk 0:04:47.6]} 10. Bg5 {[%clk 0:04:38.5]} 10... h6 {[%clk 0:04:43.8]} 11.
Bh4 {[%clk 0:04:35.1]} 11... g5 {[%clk 0:04:42.2]} 12. Bg3 {[%clk 0:04:34.3]}
12... Bg7 {[%clk 0:04:40.6]} 13. Qd4 {[%clk 0:04:18]} 13... Kb8 {[%clk
0:04:38.7]} 14. Qb4 {[%clk 0:04:03.9]} 14... Nd7 {[%clk 0:04:16.8]} 15. e5
{[%clk 0:03:59.9]} 15... Nb6 {[%clk 0:04:15.5]} 16. exd6 {[%clk 0:03:53.4]}
16... cxd6 {[%clk 0:04:14.2]} 17. Nd5 {[%clk 0:03:28.2]} 17... Nxd5 {[%clk
0:04:05.9]} 18. Bxd5 {[%clk 0:03:26.6]} 18... Qd7 {[%clk 0:04:03.8]} 19. Bxd6+
{[%clk 0:03:20.1]} 19... Ka8 {[%clk 0:03:58.5]} 20. Bxe6 {[%clk 0:02:26.5]}
20... fxe6 {[%clk 0:03:58.3]} 21. Bc5 {[%clk 0:02:15.5]} 21... Qc6 {[%clk
0:03:53]} 22. Qa5 {[%clk 0:01:46.8]} 22... b6 {[%clk 0:03:49.2]} 23. Bxb6 {[%clk
0:01:38.2]} 23... Qxb6 {[%clk 0:03:49.1]} 24. Qxb6 {[%clk 0:01:37.7]} 24... axb6
{[%clk 0:03:47.1]} 25. Rxe6 {[%clk 0:01:36.4]} 25... Bxb2 {[%clk 0:03:45.9]} 26.
Rb1 {[%clk 0:01:34.1]} 26... Rd2 {[%clk 0:03:42.5]} 27. Rxb6 {[%clk 0:01:26.5]}
27... Bd4 {[%clk 0:03:41.3]} 28. Ra6+ {[%clk 0:01:21.9]} 28... Ba7 {[%clk
0:03:41]} 29. g3 {[%clk 0:01:16.6]} 29... Rxc2 {[%clk 0:03:39.2]} 30. Re1 {[%clk
0:01:04.1]} 30... Kb7 {[%clk 0:03:33.6]} 31. Ra3 {[%clk 0:00:57.8]} 31... Bxf2+
{[%clk 0:03:31.6]} 32. Kf1 {[%clk 0:00:55.4]} 32... Bxe1 {[%clk 0:03:31.5]} 33.
Kxe1 {[%clk 0:00:54.8]} 33... Re8+ {[%clk 0:03:30.9]} 34. Kd1 {[%clk 0:00:53.3]}
34... Rxh2 {[%clk 0:03:30.4]} 35. Rb3+ {[%clk 0:00:51.3]} 35... Kc6 {[%clk
0:03:29.5]} 36. Rc3+ {[%clk 0:00:49.8]} 36... Kd5 {[%clk 0:03:28.7]} 37. Rd3+
{[%clk 0:00:48.8]} 37... Kc4 {[%clk 0:03:28]} 0-1